bitfinex/quotes_ETHUSD_20230119
["timestamp","ask_amount","ask_price","bid_price","bid_amount"]
[1674098575193,1.71372335,1527.1,1526.8,13.16443163]
[1674098575493,2.19280229,1527.1,1526.8,9.61217453]
[1674098576222,1.16494815,1527.0,1526.8,3.06254453]
[1674098576441,1.16494815,1527.0,1526.8,3.0]
[1674098576637,1.16494815,1527.0,1526.8,2.99754555]
[1674098577012,0.68586921,1527.0,1526.8,2.99754555]
[1674098577240,0.68586921,1527.1,1526.8,5.8945942]
[1674098577382,1.16484047,1527.1,1526.8,12.50676873]
[1674098577594,1.16484047,1527.1,1526.8,19.05640873]
[1674098577909,1.16484047,1527.1,1526.9,1.90564087]
[1674098578231,0.68586921,1527.1,1526.9,8.45482087]
[1674098578444,0.68586921,1527.1,1526.9,8.5173654]
[1674098580654,1.71372335,1527.2,1526.9,8.5173654]
[1674098580846,2.19266008,1527.2,1526.9,8.5173654]
[1674098581059,2.19266008,1527.2,1526.9,15.0361854]
[1674098581266,0.68586921,1527.1,1526.9,13.13054453]
[1674098581584,1.71372335,1527.1,1526.9,13.13054453]
[1674098581809,2.19266008,1527.1,1526.9,13.13054453]
[1674098584202,0.68586921,1527.1,1526.9,13.13054453]
[1674098584526,1.16468105,1527.1,1526.9,15.39830854]
[1674098585012,1.16468105,1527.1,1526.9,13.13054453]
[1674098586492,0.68586921,1527.1,1526.9,13.13054453]
[1674098587109,2.19248487,1527.2,1526.9,19.67971453]
[1674098587281,1.71372335,1527.2,1526.9,19.67971453]
[1674098587496,2.19243867,1527.2,1526.9,19.67971453]
[1674098587831,2.19243867,1527.2,1526.9,26.22892453]
[1674098588022,2.19243867,1527.2,1526.9,29.80649754]
[1674098588460,0.68586921,1527.1,1526.9,29.80649754]
[1674098588636,1.71372335,1527.2,1526.9,16.70811754]
[1674098588847,0.68586921,1527.1,1526.9,13.13054453]
[1674098590954,1.16462469,1527.1,1526.9,13.13054453]
[1674098592457,0.68586921,1527.2,1526.9,21.94752454]
[1674098592890,0.68586921,1527.2,1526.9,28.49673454]
[1674098594360,2.19255814,1527.3,1527.0,1.543]
[1674098594723,0.68586921,1527.4,1527.2,21.17579]
[1674098594908,0.68586921,1527.4,1527.2,22.23833453]
[1674098595543,0.68256523,1527.4,1527.2,21.23833453]
[1674098597651,1.16127953,1527.4,1527.2,21.23833453]
[1674098597811,0.68256523,1527.4,1527.3,2.12383345]
[1674098598004,0.68256523,1527.4,1527.3,8.67133345]
[1674098598215,1.50646498,1527.5,1527.3,8.67133345]
[1674098598216,1.02785414,1527.5,1527.3,15.28137798]
[1674098598543,1.50639231,1527.5,1527.3,15.28137798]
[1674098599103,1.50639231,1527.5,1527.4,1.5281378]
[1674098599426,1.50639231,1527.5,1527.4,14.6222778]
[1674098599635,1.02785414,1527.5,1527.4,14.68482233]
[1674098600020,0.47853817,1527.5,1527.4,14.68482233]
[1674098600656,2.88238209,1527.6,1527.4,14.68482233]
[1674098600910,1.50639231,1527.5,1527.4,14.68482233]
[1674098601075,1.02785414,1527.5,1527.4,6.60961453]
[1674098601611,0.47853817,1527.5,1527.4,13.15668453]
[1674098601975,0.47853817,1527.5,1527.4,15.33946133]
[1674098602142,1.09385414,1527.7,1527.4,19.87646133]
[1674098602333,1.02785414,1527.8,1527.6,1.538]
[1674098602550,0.4780299,1527.8,1527.7,20.84114]
[1674098602754,0.44833665,1527.8,1527.7,14.35790453]
[1674098603022,1.2191661,1527.9,1527.7,18.89990453]
[1674098603240,1.2191661,1527.9,1527.8,1.88999045]
[1674098603241,0.19131196,1527.9,1527.8,1.88999045]
[1674098603390,0.20622372,1528.0,1527.8,19.52069045]
[1674098603737,1.02785414,1527.9,1527.8,0.06254453]
[1674098603950,1.02785414,1527.9,1527.7,6.95954453]
[1674098604163,1.45145558,1527.9,1527.7,0.06254453]
[1674098604333,1.72718851,1527.9,1527.5,15.85874453]
[1674098604540,0.42360144,1527.8,1527.5,15.85874453]
[1674098604801,1.02785414,1527.7,1527.5,12.85874453]
[1674098605189,2.40384392,1527.8,1527.5,12.85874453]
[1674098605398,0.42329805,1527.7,1527.5,12.85874453]
[1674098605616,1.68466792,1527.7,1527.5,12.85874453]
[1674098605830,0.68466792,1527.7,1527.5,12.85874453]
[1674098606015,1.71252206,1527.7,1527.5,12.85874453]
[1674098606241,4.14150195,1527.7,1527.5,0.06254453]
[1674098606495,4.14150195,1527.7,1527.3,13.0003]
[1674098606496,1.10793976,1527.6,1527.3,13.06084453]
[1674098606715,1.10793976,1527.6,1527.3,0.06254453]
[1674098606716,0.11079398,1527.5,1527.3,0.06254453]
[1674098607010,0.7954619,1527.5,1527.2,12.92804453]
[1674098607403,3.25552206,1527.6,1527.2,12.92804453]
[1674098607804,2.22766792,1527.6,1527.2,12.92804453]
[1674098608162,3.25552206,1527.6,1527.2,12.92804453]
[1674098608902,1.10795425,1527.5,1527.2,12.92804453]
[1674098609218,1.24166792,1527.7,1527.4,6.54706]
[1674098609431,0.68466792,1527.7,1527.4,6.60960453]
[1674098609642,1.10774898,1527.7,1527.4,6.60960453]
[1674098610032,0.68466792,1527.7,1527.4,6.60960453]
[1674098610375,2.10775476,1527.7,1527.4,0.06254453]
[1674098610530,1.1492191,1527.7,1527.3,6.60995453]
[1674098610740,1.1492191,1527.7,1527.3,13.15736453]
[1674098611228,0.68466792,1527.7,1527.3,13.15736453]
[1674098611373,1.10770041,1527.7,1527.3,13.15736453]
[1674098611793,2.13555455,1527.7,1527.3,13.15736453]
[1674098614526,0.6453932,1527.8,1527.5,1.542]
[1674098614737,0.6453932,1527.8,1527.6,13.24662]
[1674098615087,1.30358707,1527.9,1527.6,14.30916453]
[1674098615303,0.27573293,1527.9,1527.6,14.30916453]
[1674098615634,0.27573293,1527.9,1527.6,26.74586453]
[1674098615816,0.27573293,1527.9,1527.7,15.76573645]
[1674098616032,0.27573293,1527.9,1527.7,15.82828098]
[1674098616240,0.20622372,1528.0,1527.7,15.82828098]
[1674098617836,0.20622372,1528.0,1527.7,17.36328098]
[1674098618523,0.20622372,1528.0,1527.7,15.82828098]
[1674098618729,0.20622372,1528.0,1527.8,1.5828281]
[1674098619107,0.20622372,1528.0,1527.7,0.06254453]
[1674098619256,0.20622372,1528.0,1527.7,6.54573]
[1674098619468,0.20622372,1528.0,1527.7,13.15405453]
[1674098620002,0.20622372,1528.0,1527.7,14.69405453]
[1674098620216,0.20622372,1528.0,1527.9,13.08986]
[1674098620530,0.20622372,1528.0,1527.9,13.15240453]
[1674098621092,0.20622372,1528.0,1527.9,0.06254453]
[1674098621256,0.20622372,1528.0,1527.8,8.07696998]
[1674098621466,0.20622372,1528.0,1527.9,0.807697]
[1674098622673,0.20622372,1528.0,1527.9,6.54493]
[1674098622826,0.20622372,1528.0,1527.9,6.60747453]
[1674098623032,1.29222372,1528.0,1527.9,0.06254453]
[1674098623251,2.71351075,1528.0,1527.7,10.03764453]
[1674098623573,1.29222372,1528.0,1527.7,10.03764453]
[1674098624017,0.20622372,1528.0,1527.7,14.54885698]
[1674098624775,2.31110011,1528.0,1527.7,14.54885698]
[1674098625088,1.10491575,1527.9,1527.7,0.06254453]
[1674098625308,1.10491575,1527.9,1527.6,15.49924453]
[1674098625463,0.68352007,1527.9,1527.6,12.49924453]
[1674098625659,3.41303706,1527.9,1527.6,12.49924453]
[1674098625872,9.53656455,1527.9,1527.6,12.49924453]
[1674098626133,3.05762455,1527.9,1527.6,12.49924453]
[1674098626346,2.99162455,1527.9,1527.6,12.49924453]
[1674098627618,9.53663455,1527.9,1527.6,12.49924453]
[1674098627764,2.40431474,1527.8,1527.6,0.06254453]
[1674098627975,1.10534341,1527.7,1527.4,18.95344453]
[1674098629341,0.68352007,1527.7,1527.4,18.95344453]
[1674098629987,8.62195666,1527.8,1527.4,18.95344453]
[1674098630194,1.10548591,1527.7,1527.4,18.95344453]
[1674098631398,1.10548591,1527.7,1527.4,22.53722398]
[1674098631584,0.68352007,1527.7,1527.4,22.53722398]
[1674098631772,8.32279421,1527.8,1527.4,22.53722398]
[1674098632319,1.10560512,1527.7,1527.4,12.40674453]
[1674098632659,2.13345926,1527.7,1527.4,12.40674453]
[1674098633018,8.67927926,1527.7,1527.4,12.40674453]
[1674098633234,0.68352007,1527.5,1527.4,12.40674453]
[1674098633468,1.10560512,1527.5,1527.4,12.40674453]
[1674098633682,2.13345926,1527.5,1527.4,12.40674453]
[1674098633900,1.10560512,1527.5,1527.4,12.40674453]
[1674098634091,1.46315002,1527.5,1527.4,0.06254453]
[1674098634305,1.46315002,1527.5,1527.3,12.23434453]
[1674098634306,2.49262823,1527.5,1527.3,12.23434453]
[1674098634510,1.10722919,1527.4,1527.3,0.06254453]
[1674098634729,0.93440696,1527.4,1527.1,29.09687453]
[1674098634950,0.68514414,1527.4,1527.1,35.64522453]
[1674098635163,1.10640635,1527.4,1527.1,35.64522453]
[1674098635353,0.68514414,1527.4,1527.1,35.64522453]
[1674098635561,0.68514414,1527.4,1527.1,12.23434453]
[1674098635808,0.89857019,1527.4,1527.1,12.23434453]
[1674098636030,1.77899828,1527.5,1527.1,18.78269453]
[1674098636186,1.71299828,1527.5,1527.1,18.78269453]
[1674098636416,2.13422302,1527.5,1527.1,18.78269453]
[1674098637483,2.13422302,1527.5,1527.1,18.77939124]
[1674098638109,1.10636888,1527.4,1527.1,12.23104124]
[1674098638323,1.31979118,1527.4,1527.1,12.23104124]
[1674098638531,0.89856644,1527.4,1527.1,12.23104124]
[1674098638724,7.44569644,1527.4,1527.1,0.06254453]
[1674098638935,7.51169644,1527.4,1527.0,9.61694603]
[1674098639149,0.066,1527.4,1527.2,1.0]
[1674098639444,8.81645828,1527.6,1527.2,6.54785]
[1674098639666,0.8846829,1527.5,1527.2,6.61039453]
[1674098639881,8.81645828,1527.6,1527.2,6.61039453]
[1674098640633,2.27009828,1527.6,1527.2,6.61039453]
[1674098640805,2.20409828,1527.6,1527.2,6.61039453]
[1674098642404,1.17624414,1527.6,1527.2,6.61039453]
[1674098642967,2.62507532,1527.6,1527.2,6.61039453]
[1674098643276,2.20409828,1527.6,1527.2,6.61039453]
[1674098644125,1.17624414,1527.6,1527.2,6.61039453]
[1674098644591,1.17624414,1527.6,1527.2,10.14939198]
[1674098645438,0.68514414,1527.6,1527.2,9.89939198]
[1674098645676,2.13409532,1527.6,1527.2,9.89939198]
[1674098646549,2.13409532,1527.6,1527.2,16.44732198]
[1674098646698,0.75114414,1527.7,1527.3,6.1867322]
[1674098646914,0.75114414,1527.7,1527.4,21.18394]
[1674098646915,0.68514414,1527.7,1527.4,21.18394]
[1674098647252,1.02785414,1527.8,1527.6,13.09242]
[1674098647253,0.68514414,1527.8,1527.6,13.09242]
[1674098647635,0.68514414,1527.8,1527.6,13.15496453]
[1674098647786,1.98481006,1528.0,1527.6,20.05196453]
[1674098648000,0.89095592,1528.0,1527.8,1.543]
[1674098648212,0.20622372,1528.0,1527.9,13.08986]
[1674098648539,0.20622372,1528.0,1527.9,13.15240453]
[1674098648747,0.20622372,1528.0,1527.9,15.27646198]
[1674098648962,0.20622372,1528.0,1527.9,2.18660198]
[1674098648963,0.89095592,1528.0,1527.9,2.18660198]
[1674098649277,1.2913272,1528.0,1527.8,18.76931453]
[1674098649444,0.89095592,1528.0,1527.8,12.22414453]
[1674098650484,0.89095592,1528.0,1527.8,25.31484453]
[1674098650729,0.89095592,1528.0,1527.8,28.80088898]
[1674098651897,0.89095592,1528.0,1527.8,18.76949453]
[1674098652093,1.91881006,1528.0,1527.8,18.76949453]
[1674098652304,0.89095592,1528.0,1527.8,18.76949453]
[1674098653056,2.31914606,1528.0,1527.8,12.22414453]
[1674098653265,1.66010475,1527.9,1527.8,0.06254453]
[1674098653423,1.66010475,1527.9,1527.5,29.27782453]
[1674098653633,1.08494397,1527.8,1527.5,29.27782453]
[1674098654421,0.68460797,1527.9,1527.5,35.82446453]
[1674098654616,1.0849856,1527.9,1527.5,39.45603398]
[1674098655176,2.11283974,1527.9,1527.5,35.82446453]
[1674098655348,2.0849856,1527.8,1527.5,35.82446453]
[1674098655527,2.0849856,1527.8,1527.5,22.73154453]
[1674098655528,1.68460797,1527.8,1527.5,22.73154453]
[1674098655731,2.10005316,1527.8,1527.5,22.73154453]
[1674098655945,1.08509977,1527.7,1527.5,0.06254453]
[1674098656190,1.08509977,1527.7,1527.4,3.0]
[1674098656526,1.08509977,1527.7,1527.4,9.54701]
[1674098656689,0.75060797,1527.8,1527.4,16.15662453]
[1674098656892,0.68460797,1527.8,1527.4,20.77820598]
[1674098657097,1.08509023,1527.8,1527.4,20.77820598]
[1674098657732,1.77846211,1527.9,1527.4,22.31520598]
[1674098657943,1.77846211,1527.9,1527.6,1.0]
[1674098657944,0.68460797,1527.9,1527.6,1.0]
[1674098658315,1.08511678,1527.9,1527.6,13.09194]
[1674098658486,1.08511678,1527.9,1527.6,13.15448453]
[1674098658700,1.08511678,1527.9,1527.6,25.00938453]
[1674098659430,1.08511678,1527.9,1527.6,27.69166659]
[1674098659670,0.68460797,1527.9,1527.6,27.69166659]
[1674098659996,1.08505302,1527.9,1527.6,27.69166659]
[1674098660188,0.89083169,1528.0,1527.7,3.0]
[1674098660358,0.89083169,1528.0,1527.8,0.3]
[1674098660569,0.89083169,1528.0,1527.9,13.08986]
[1674098660780,0.89083169,1528.0,1527.9,13.15240453]
[1674098661251,1.29130555,1528.0,1527.9,13.15240453]
[1674098661447,0.20622372,1528.0,1527.9,15.15216498]
[1674098667221,0.20622372,1528.0,1527.9,13.15240453]
[1674098667573,0.20622372,1528.0,1527.9,14.69240453]
[1674098669667,0.20622372,1528.0,1527.9,13.15240453]
[1674098670288,0.20622372,1528.0,1527.9,6.60747453]
[1674098670481,0.20622372,1528.0,1527.9,0.06254453]
[1674098670708,0.20622372,1528.0,1527.9,6.54493]
[1674098671033,0.20622372,1528.0,1527.9,6.60747453]
[1674098671878,0.20622372,1528.0,1527.9,18.12218398]
[1674098674187,0.20622372,1528.0,1527.9,19.66018398]
[1674098675007,0.20622372,1528.0,1527.9,32.46828398]
[1674098683961,0.20622372,1528.0,1527.9,30.93028398]
[1674098684195,0.20622372,1528.0,1527.9,28.96050453]
[1674098687182,0.89083169,1528.0,1527.9,28.96050453]
[1674098687368,0.20622372,1528.0,1527.9,28.96050453]
[1674098687586,1.54,1528.1,1527.9,12.87064453]
[1674098687846,1.54,1528.1,1527.9,0.06254453]
[1674098687847,1.24,1528.0,1527.9,0.06254453]
[1674098688161,1.24,1528.0,1527.7,0.06846603]
[1674098688162,1.64073697,1528.0,1527.7,0.06846603]
[1674098688383,0.56481067,1527.9,1527.7,0.0059215]
[1674098688526,0.40073697,1527.8,1527.7,0.0059215]
[1674098690580,0.6550737,1527.9,1527.7,0.0059215]
[1674098691319,0.491,1527.9,1527.7,6.5517015]
[1674098691471,0.491,1527.9,1527.7,13.16002603]
[1674098694534,1.33563223,1527.8,1527.7,13.16002603]
[1674098694896,1.33563223,1527.8,1527.7,6.61424603]
[1674098695732,1.33563223,1527.8,1527.7,0.06846603]
[1674098695944,1.46919545,1527.8,1527.7,0.0059215]
[1674098696617,3.8684613,1527.8,1527.7,0.0059215]
[1674098696856,2.4974841,1527.8,1527.7,0.0059215]
[1674098697744,3.18296721,1527.8,1527.7,0.0059215]
[1674098698023,2.4974841,1527.8,1527.7,0.0059215]
[1674098699558,1.77966671,1527.9,1527.7,1.0559215]
[1674098699775,0.93529705,1527.8,1527.7,7.6017015]
[1674098699925,0.93529705,1527.8,1527.7,7.66424603]
[1674098699926,0.68537806,1527.8,1527.7,7.66424603]
[1674098700135,0.68537806,1527.8,1527.7,9.18526563]
[1674098700597,1.71366671,1527.9,1527.7,9.18526563]
[1674098700763,1.71366671,1527.9,1527.7,15.73104563]
[1674098701718,0.68537806,1527.9,1527.7,15.73104563]
[1674098702547,1.71366671,1527.9,1527.7,14.21002603]
[1674098703132,1.96354178,1527.9,1527.7,14.21002603]
[1674098703318,1.96354178,1527.9,1527.7,13.16002603]
[1674098703543,0.93525313,1527.8,1527.7,13.16002603]
[1674098703872,0.68537806,1527.8,1527.7,13.16002603]
[1674098704564,0.93525313,1527.8,1527.7,13.16002603]
[1674098705235,0.68537806,1527.8,1527.7,13.16002603]
[1674098705445,0.93525313,1527.8,1527.7,13.16002603]
[1674098705598,0.68537806,1527.8,1527.7,13.16002603]
[1674098706586,1.71366671,1527.9,1527.7,13.16002603]
[1674098706777,0.93523522,1527.8,1527.7,13.16002603]
[1674098706967,0.68537806,1527.8,1527.7,13.16002603]
[1674098707381,1.71366671,1527.8,1527.7,0.06846603]
[1674098707594,2.29697398,1527.8,1527.7,0.0059215]
[1674098707801,1.61159592,1527.8,1527.7,0.0059215]
[1674098708453,10.04263447,1527.8,1527.7,0.00165534]
[1674098708662,19.29575486,1527.8,1527.7,0.00165534]
[1674098709293,20.07726967,1527.8,1527.7,0.00165534]
[1674098709506,0.00034466,1527.6,1527.1,25.68729031]
[1674098709719,2.22788694,1527.5,1527.1,25.68729031]
[1674098709943,3.22788694,1527.5,1527.1,19.13905031]
[1674098710546,9.77465694,1527.5,1527.1,19.13905031]
[1674098710759,8.84065694,1527.5,1527.1,19.13905031]
[1674098711124,0.88406569,1527.4,1527.1,19.13905031]
[1674098711506,3.11195263,1527.4,1527.1,0.09336031]
[1674098711723,3.60305263,1527.4,1527.1,0.03081578]
[1674098711935,0.36030526,1527.3,1527.1,0.03081578]
[1674098712265,1.90330526,1527.3,1527.1,0.03081578]
[1674098715955,2.90330526,1527.3,1527.1,0.03081578]
[1674098716542,1.90330526,1527.3,1527.1,0.03081578]
[1674098717899,2.90330526,1527.3,1527.1,0.03081578]
[1674098718147,1.90330526,1527.3,1527.1,0.03081578]
[1674098718365,2.90330526,1527.3,1527.1,0.03081578]
[1674098719761,9.45088526,1527.3,1527.1,0.03081578]
[1674098720054,1.94508853,1527.2,1527.1,0.03081578]
[1674098720431,0.94508853,1527.2,1527.1,0.03081578]
[1674098725015,2.39450526,1527.3,1527.1,0.03081578]
[1674098725169,1.528,1527.2,1527.1,0.03081578]
[1674098725587,2.528,1527.2,1527.1,0.03081578]
[1674098725862,10.04130995,1527.2,1527.1,0.03081578]
[1674098726178,18.65502995,1527.2,1527.1,0.03081578]
[1674098726487,22.91225231,1527.2,1527.1,0.03081578]
[1674098726842,25.47258272,1527.2,1527.1,0.03081578]
[1674098727015,26.25409753,1527.2,1527.1,0.03081578]
[1674098727371,25.22676712,1527.2,1527.1,0.0077655]
[1674098727586,25.56921059,1527.2,1527.1,0.0077655]
[1674098728268,34.38877176,1527.2,1527.1,0.0077655]
[1674098728480,34.38877176,1527.2,1527.1,0.00130752]
[1674098728481,32.67655441,1527.2,1527.1,0.00130752]
[1674098728854,28.91165406,1527.2,1527.1,0.00130752]
[1674098729289,19.64634,1527.0,1526.9,0.03081578]
[1674098729499,26.31308759,1527.0,1526.9,0.03081578]
[1674098729749,26.80438759,1527.0,1526.9,0.03081578]
[1674098730742,26.80438759,1527.0,1526.7,0.03081578]
[1674098730743,1.0,1526.9,1526.7,0.03081578]
[1674098731107,19.25102759,1526.8,1526.7,0.03081578]
[1674098731324,19.31702759,1526.8,1526.7,0.03081578]
[1674098732332,19.80832759,1526.8,1526.7,0.03081578]
[1674098733315,19.80832759,1526.8,1526.7,0.30785611]
[1674098734562,3.4173,1526.8,1526.7,0.30785611]
[1674098734748,0.987,1526.8,1526.7,0.30785611]
[1674098735207,17.86932759,1526.8,1526.7,0.30785611]
[1674098735408,17.93532759,1526.8,1526.7,0.30785611]
[1674098735988,18.16532759,1526.8,1526.7,0.30785611]
[1674098736656,19.70532759,1526.8,1526.7,0.30785611]
[1674098736867,22.33079035,1526.8,1526.7,0.30785611]
[1674098739559,21.83949035,1526.8,1526.7,0.30785611]
[1674098739984,23.32449035,1526.8,1526.7,0.30785611]
[1674098749599,24.28827958,1526.8,1526.7,0.30785611]
[1674098749810,24.28827958,1526.8,1526.7,0.07779518]
[1674098749811,40.31365723,1526.8,1526.7,0.07779518]
[1674098750003,41.58467506,1526.8,1526.7,0.07779518]
[1674098750842,43.29689241,1526.8,1526.7,0.07779518]
[1674098751065,39.47941162,1526.8,1526.7,0.07779518]
[1674098751279,38.10963774,1526.8,1526.7,0.07779518]
[1674098751458,37.76684068,1526.8,1526.7,0.07779518]
[1674098753119,36.22684068,1526.8,1526.7,0.07779518]
[1674098753490,35.59009895,1526.8,1526.7,0.07779518]
[1674098753698,36.22684068,1526.8,1526.7,0.07779518]
[1674098753896,37.93905803,1526.8,1526.7,0.07779518]
[1674098754257,41.70464599,1526.8,1526.7,0.07779518]
[1674098754390,37.93905803,1526.8,1526.7,0.07779518]
[1674098754971,36.22684068,1526.8,1526.7,0.07779518]
[1674098755324,37.93905803,1526.8,1526.7,0.07779518]
[1674098755661,36.22684068,1526.8,1526.7,0.07779518]
[1674098755867,37.02370483,1526.8,1526.7,0.07779518]
[1674098756188,35.65428454,1526.8,1526.7,0.07779518]
[1674098756940,35.01754281,1526.8,1526.7,0.07779518]
[1674098757379,34.61326671,1526.8,1526.7,0.07779518]
[1674098757536,35.24754281,1526.8,1526.7,0.07779518]
[1674098758686,35.29797536,1526.8,1526.7,0.07779518]
[1674098758896,26.61684061,1526.8,1526.7,0.07779518]
[1674098759357,13.51756061,1526.8,1526.7,0.07779518]
[1674098759578,12.58056061,1526.8,1526.7,0.07779518]
[1674098762173,23.67670062,1526.8,1526.7,0.07779518]
[1674098763439,25.04612091,1526.8,1526.7,0.07779518]
[1674098763649,28.90505382,1526.8,1526.7,0.07779518]
[1674098764091,30.27629326,1526.8,1526.7,0.07779518]
[1674098764279,28.56407591,1526.8,1526.7,0.07779518]
[1674098764921,30.27629326,1526.8,1526.7,0.02010749]
[1674098765324,28.90505382,1526.8,1526.7,0.02010749]
[1674098765690,27.8295782,1526.8,1526.7,0.02010749]
[1674098765832,28.3208782,1526.8,1526.7,0.02010749]
[1674098766724,28.3208782,1526.8,1526.7,0.0034851]
[1674098766725,35.67465401,1526.8,1526.7,0.0034851]
[1674098767168,33.61593854,1526.8,1526.7,0.0034851]
[1674098768073,29.8518782,1526.8,1526.7,0.0034851]
[1674098768718,33.61479901,1526.8,1526.7,0.0034851]
[1674098768952,29.8518782,1526.8,1526.7,0.0034851]
[1674098769828,15.0901349,1526.7,1526.6,0.07305905]
[1674098770051,45.37871223,1526.7,1526.6,0.07305905]
[1674098770299,40.19444187,1526.7,1526.6,0.07305905]
[1674098770902,42.2528633,1526.7,1526.6,0.07305905]
[1674098771107,49.1498633,1526.7,1526.6,0.07305905]
[1674098771442,26.20372,1526.5,1526.4,0.03978844]
[1674098771631,36.31741833,1526.5,1526.4,0.03978844]
[1674098771983,37.4385247,1526.5,1526.4,0.03978844]
[1674098772360,37.4385247,1526.5,1526.4,0.24759793]
[1674098775658,38.80972546,1526.5,1526.4,0.24759793]
[1674098775867,41.70089087,1526.5,1526.4,0.24759793]
[1674098777453,39.9854045,1526.5,1526.4,0.24759793]
[1674098777662,47.22669011,1526.5,1526.4,0.24759793]
[1674098778184,40.32969011,1526.5,1526.4,0.24759793]
[1674098778400,41.20940158,1526.5,1526.4,0.24759793]
[1674098778559,40.97940158,1526.5,1526.4,0.24759793]
[1674098778767,39.26391521,1526.5,1526.4,0.24759793]
[1674098779723,39.49391521,1526.5,1526.4,0.24759793]
[1674098780276,40.52232234,1526.5,1526.4,0.24759793]
[1674098782399,38.98532234,1526.5,1526.4,0.24759793]
[1674098783191,37.95691521,1526.5,1526.4,0.24759793]
[1674098785037,38.98551379,1526.5,1526.4,0.24759793]
[1674098786618,31.74934958,1526.5,1526.4,0.24759793]
[1674098786824,28.74934958,1526.5,1526.4,0.24759793]
[1674098787034,28.11964321,1526.5,1526.4,0.24759793]
[1674098788775,27.43376595,1526.5,1526.4,0.24759793]
[1674098788982,28.80487742,1526.5,1526.4,0.24759793]
[1674098789459,27.77627884,1526.5,1526.4,0.24759793]
[1674098790141,27.43470882,1526.5,1526.4,0.24759793]
[1674098796279,27.43470882,1526.5,1526.4,0.24477104]
[1674098797589,2.05547969,1526.5,1526.4,0.24477104]
[1674098797801,0.95993824,1526.5,1526.4,0.24477104]
[1674098798320,1.71601532,1526.5,1526.4,0.24477104]
[1674098798572,1.98947969,1526.5,1526.4,0.24477104]
[1674098799427,1.30300582,1526.5,1526.4,0.24477104]
[1674098802683,1.30500582,1526.5,1526.4,0.24477104]
[1674098802897,1.30300582,1526.5,1526.4,0.24477104]
[1674098803366,19.85233316,1526.5,1526.4,0.24477104]
[1674098803528,19.91833316,1526.5,1526.4,0.24477104]
[1674098803971,21.63381953,1526.5,1526.4,0.24477104]
[1674098810480,19.91833316,1526.5,1526.4,0.24477104]
[1674098811162,21.63381953,1526.5,1526.4,0.24477104]
[1674098811368,23.63754846,1526.5,1526.4,0.24477104]
[1674098811534,20.89241443,1526.5,1526.4,0.24477104]
[1674098811750,20.26270806,1526.5,1526.4,0.24477104]
[1674098814890,21.63703146,1526.5,1526.4,0.24477104]
[1674098816202,20.89241443,1526.5,1526.4,0.24477104]
[1674098816428,20.26270806,1526.5,1526.4,0.24477104]
[1674098816942,21.63727212,1526.5,1526.4,0.24477104]
[1674098817517,19.92178575,1526.5,1526.4,0.24477104]
[1674098818209,21.63727212,1526.5,1526.4,0.24477104]
[1674098819870,20.89241443,1526.5,1526.4,0.24091076]
[1674098820063,20.26270806,1526.5,1526.4,0.24091076]
[1674098820955,21.54722169,1526.5,1526.4,0.06208939]
[1674098821097,23.71992806,1526.5,1526.4,0.06208939]
[1674098822087,25.78254847,1526.5,1526.4,0.06208939]
[1674098822838,24.23954847,1526.5,1526.4,0.06208939]
[1674098823194,23.89558503,1526.5,1526.4,0.06208939]
[1674098823483,20.26587866,1526.5,1526.4,0.06208939]
[1674098829503,20.21587866,1526.5,1526.4,0.06208939]
[1674098841434,18.49722169,1526.5,1526.4,0.06208939]
[1674098842171,20.5598421,1526.5,1526.4,0.06208939]
[1674098842386,20.5598421,1526.5,1526.4,0.01637334]
[1674098844372,18.49722169,1526.5,1526.4,0.01637334]
[1674098846377,20.5598421,1526.5,1526.4,0.01637334]
[1674098851660,18.49722169,1526.5,1526.4,0.01637334]
[1674098852876,20.5598421,1526.5,1526.4,0.01637334]
[1674098854267,18.49722169,1526.5,1526.4,0.01637334]
[1674098854481,20.5598421,1526.5,1526.4,0.01637334]
[1674098855981,21.18954847,1526.5,1526.4,0.01637334]
[1674098857405,21.18954847,1526.5,1526.4,0.00433592]
[1674098858975,20.5598421,1526.5,1526.4,0.00433592]
[1674098859180,21.18954847,1526.5,1526.4,0.00433592]
[1674098865182,24.18954847,1526.5,1526.4,0.00433592]
[1674098867287,26.07184267,1526.5,1526.4,0.00076642]
[1674098868593,23.66992806,1526.5,1526.4,0.00076642]
[1674098871819,25.73120089,1526.5,1526.4,0.00076642]
[1674098872024,25.47820089,1526.5,1526.4,0.00076642]
[1674098872594,1.0,1526.4,1526.3,0.00853464]
[1674098872800,20.39575205,1526.4,1526.3,0.00853464]
[1674098873115,23.15273125,1526.4,1526.3,0.00853464]
[1674098876849,23.14986918,1526.4,1526.3,0.00853464]
[1674098878664,22.15273125,1526.4,1526.3,0.00853464]
[1674098878873,20.09145842,1526.4,1526.3,0.00853464]
[1674098880900,21.80946165,1526.4,1526.3,0.00853464]
[1674098881288,20.09145842,1526.4,1526.3,0.00853464]
[1674098884388,21.75971218,1526.4,1526.3,0.00853464]
[1674098885078,20.04145842,1526.4,1526.3,0.00853464]
[1674098886078,22.10273125,1526.4,1526.3,0.00853464]
[1674098886617,20.04145842,1526.4,1526.3,0.00853464]
[1674098886966,19.94145842,1526.4,1526.3,0.00853464]
[1674098887283,22.00273125,1526.4,1526.3,0.00853464]
[1674098887530,22.00273125,1526.4,1526.3,0.00226761]
[1674098888389,21.66013883,1526.4,1526.3,0.00226761]
[1674098888755,2.86785115,1526.4,1526.3,1.05226761]
[1674098888965,3.54701311,1526.4,1526.3,1.05226761]
[1674098889398,2.17214478,1526.4,1526.3,1.05226761]
[1674098889819,3.54695837,1526.4,1526.3,1.05226761]
[1674098890547,3.54695837,1526.4,1526.3,0.00226761]
[1674098892324,3.54695837,1526.4,1526.3,1.05226761]
[1674098892586,1.48444722,1526.4,1526.3,1.15749437]
[1674098893453,2.85926081,1526.4,1526.3,1.15749437]
[1674098893618,1.82827796,1526.4,1526.3,1.15749437]
[1674098893807,2.63565204,1526.4,1526.3,1.15749437]
[1674098894016,2.62911641,1526.4,1526.3,1.15749437]
[1674098894260,2.62911641,1526.4,1526.3,15.54307437]
[1674098894261,0.91066017,1526.4,1526.3,15.54307437]
[1674098894497,0.91066017,1526.4,1526.3,16.6056189]
[1674098894651,0.91066017,1526.4,1526.3,15.6056189]
[1674098894852,0.6871958,1526.4,1526.3,15.6056189]
[1674098895697,1.03083845,1526.4,1526.3,15.6056189]
[1674098895903,1.71783353,1526.4,1526.3,15.6056189]
[1674098896376,0.68699508,1526.4,1526.3,15.6056189]
[1674098896595,2.62911641,1526.5,1526.3,16.8856189]
[1674098896596,0.68699508,1526.5,1526.3,16.8856189]
[1674098896832,0.68699508,1526.5,1526.4,4.27256189]
[1674098897121,0.68699508,1526.5,1526.4,17.37528189]
[1674098897328,0.68699508,1526.5,1526.4,17.43782642]
[1674098897909,1.71783353,1526.6,1526.4,17.43782642]
[1674098898115,1.71783353,1526.6,1526.5,3.02978264]
[1674098898367,1.71783353,1526.6,1526.5,9.58071264]
[1674098898587,1.94486218,1526.6,1526.5,9.64325717]
[1674098898972,0.91402373,1526.6,1526.5,9.64325717]
[1674098899219,1.94486218,1526.6,1526.5,9.64325717]
[1674098899900,0.91402373,1526.6,1526.5,9.64325717]